Cogmind - Beta 16 @@@ ROGUE MODE // 2025.11.17 @ 18:31:21 Player: Anonymous Bosch Result: Destroyed by S-10 Pest with Light Assault Rifle Performance ------------- Evolutions (0) 0 Regions Visited (4) 800 Robots Destroyed (24) 120 Value Destroyed (447) 447 Prototype IDs (0) 0 Alien Tech Used (0) 0 Bonus (-13) -13 TOTAL SCORE: 1354 Bonus ------- Friendly Fire -13 Cogmind --------- Core Integrity 0/250 Matter 205/300 Energy 125/125 System Corruption 4% Temperature Cool (0) Movement Treading (160) Location -9/Mines Parts ------- > --- POWER (1) -------- Light Ion Engine > --- PROPULSION (2) --- Light Treads Light Treads > --- UTILITY (2) ------ Large Storage Unit > --- WEAPON (2) ------- Assault Rifle Assault Rifle > --- INVENTORY (15) --- Light Ion Engine Light Treads Heat Sink Improved Heat Sink High-capacity Storage Unit High-capacity Battery (250) Compact Matter Pod (150) Targeting Computer Light Assault Rifle Improved Light Cannon Mini Grenade Launcher Mini Grenade Launcher Mini Grenade Launcher Datajack Mining Laser Peak State ------------ > --- POWER ------------ Light Ion Engine > --- PROPULSION ------- Light Treads Light Treads > --- UTILITY ---------- Large Storage Unit Seismic Detector > --- WEAPON ----------- Assault Rifle Assault Rifle > --- INVENTORY -------- Light Ion Engine Light Treads Heat Sink Signal Interpreter Targeting Computer Medium Laser Light Assault Rifle Improved Light Cannon Improved Light Cannon Mini Grenade Launcher Mini Grenade Launcher Mini Grenade Launcher Mini Grenade Launcher Datajack Mining Laser [Rating: 9] Favorites ----------- Power Light Ion Engine Engine Light Ion Engine Propulsion Light Treads Treads Light Treads Utility Seismic Detector Device Seismic Detector Storage Large Storage Unit Weapon Assault Rifle Ballistic Gun Assault Rifle Build | -11 -10 -10 -10 -9 ------- Run | Yrd Mat Min Exi Min Slots Evolved . | . . . . . Power . | . . . . . Propulsion . | . . . . . Utility . | . . . . . Weapon . | . . . . . Parts Attached 18 | 7 11 . . . Power 3 | 1 2 . . . Engine 3 | 1 2 . . . Core . | . . . . . Reactor . | . . . . . Propulsion 4 | 2 2 . . . Treads 4 | 2 2 . . . Leg . | . . . . . Wheel . | . . . . . Hover . | . . . . . Flight . | . . . . . Utility 6 | 2 4 . . . Device 2 | 1 1 . . . Storage 4 | 1 3 . . . Processor . | . . . . . Hackware . | . . . . . Protection . | . . . . . Artifact . | . . . . . Weapon 5 | 2 3 . . . Energy Gun . | . . . . . Energy Cannon . | . . . . . Ballistic Gun 5 | 2 3 . . . Ballistic Cannon . | . . . . . Launcher . | . . . . . Special Weapon . | . . . . . Impact Weapon . | . . . . . Slashing Weapon . | . . . . . Piercing Weapon . | . . . . . Special Melee Weapon . | . . . . . Unidentified Prototypes . | . . . . . Parts Lost 8 | . 7 . . 1 Power 1 | . 1 . . . Propulsion 2 | . 2 . . . Utility 2 | . 1 . . 1 Weapon 3 | . 3 . . . Highest Loss Streak 3 | . 3 . . 1 To Critical Strikes . | . . . . . Average Backups 12 | 4 8 15 15 15 Power . | . . 1 1 1 Propulsion 1 | 1 1 1 1 1 Utility 3 | . 1 4 5 6 Weapon 5 | 1 4 7 6 6 Tool/Special . | . . . . . Unused Backups 20 | . 3 2 1 14 Power 1 | . . . . 1 Propulsion 3 | . 2 . . 1 Utility 6 | . 1 . . 5 Weapon 9 | . . 2 1 6 Tool/Special 1 | . . . . 1 Average Slot Usage (%) 98 | . 96 100 100 100 Engine 14 | . 14 14 14 14 Treads 27 | . 27 28 28 28 Device 12 | . 11 14 14 14 Storage 14 | . 14 14 14 14 Ballistic Gun 27 | . 27 28 28 28 Peak Build Rating 9 | 7 9 9 9 9 Average Rating 8 | 4 7 9 9 8 On Entrance 6 | . 7 9 9 9 Avg Prop Armor Cover (%) . | . . . . . Naked Turns . | . . . . . Heaviest Build 28 | 15 28 28 28 . Greatest Support 40 | 40 40 40 40 . Greatest Overweight (x) 3 | 3 . . . . Average Overweight (x) . | . . . . . Largest Inventory Capacity 20 | 8 20 15 15 15 Average Capacity 12 | 7 10 15 15 15 Most Carried 15 | 8 15 15 15 15 Average Carried 12 | 4 8 14 14 15 Final Capacity 15 | 8 15 15 15 15 Final Carried 15 | 5 15 15 15 15 Class Distribution -------------------- 86% | Mutant 13% | Scavenger-Mutant Dominant Class ---------------- Mutant | -10/Materials Mutant | -10/Mines Mutant | -10/Exiles Mutant | -9/Mines Resources | -11 -10 -10 -10 -9 ----------- Run | Yrd Mat Min Exi Min Matter Collected 943 | 300 566 77 . . Remotely . | . . . . . Salvage Created 824 | 113 566 98 . 47 Parts 46 | 4 35 3 . 4 Haulers Intercepted 2 | . 2 . . . Recyclers Shooed 1 | . 1 . . . Parts Field Recycled . | . . . . . Retrieved Matter . | . . . . . Parts Self-Destructed . | . . . . . Prevented . | . . . . . Parts Restored . | . . . . . Kills | -11 -10 -10 -10 -9 ------- Run | Yrd Mat Min Exi Min Combat Hostiles Destroyed 17 | . 12 2 . 3 Guns 17 | . 12 2 . 3 Classes Destroyed 6 | 2 4 . . . Tunneler 2 | 1 1 . . . Hauler 2 | . 2 . . . Recycler 2 | 1 1 . . . Watcher 1 | . 1 . . . Swarmer 9 | . 6 . . 3 Grunt 8 | . 6 2 . . Best Kill Streak 3 | 2 3 2 . 3 Combat Bots Only 3 | . 3 2 . 3 Max Kills in Single Turn 1 | 1 1 1 . 1 Gunslinging . | . . . . . Exploded . | . . . . . Melee . | . . . . . Uniques/NPCs Destroyed . | . . . . . Combat | -11 -10 -10 -10 -9 -------- Run | Yrd Mat Min Exi Min Hostile Shots Fired 175 | . 141 15 . 19 Missed 51 | . 43 6 . 2 Hits 124 | . 98 9 . 17 Projectile 124 | . 98 9 . 17 Critical Strikes 1 | . 1 . . . Damage Taken 1333 | . 1091 105 . 137 Core 251 | . 173 35 . 43 Absorbed by Shields . | . . . . . Core Remaining (%) 100 | 100 . . . . Volleys Fired 101 | 5 82 8 . 6 Largest 2 | 2 2 2 . 2 Hottest 40 | 40 40 40 . 40 Shots Fired 201 | 10 162 16 1 12 Gun 201 | 10 162 16 1 12 Cannon . | . . . . . Launcher . | . . . . . Special . | . . . . . Kinetic 201 | 10 162 16 1 12 Thermal . | . . . . . Explosive . | . . . . . Electromagnetic . | . . . . . Robot Hit Streak 7 | 6 7 6 6 7 Robot Miss Streak 7 | 1 7 1 . 2 Penetration Max . | . . . . . Secondary Targets 5 | . 2 . . 3 Max Gunslinging Chain 1 | . 1 . . 1 Shots Hit Robots 120 | 7 91 13 1 8 Core Hits 42 | 3 31 5 . 3 Critical Kills . | . . . . . Critical Parts Destroyed . | . . . . . Critical Strikes . | . . . . . Melee Attacks . | . . . . . Impact . | . . . . . Slashing . | . . . . . Piercing . | . . . . . Sneak Attacks . | . . . . . Combat Hostiles . | . . . . . Follow-up Attacks . | . . . . . Damage Inflicted 1565 | 88 1193 167 13 104 Guns 1565 | 88 1193 167 13 104 Cannons . | . . . . . Explosions . | . . . . . Melee . | . . . . . Ramming . | . . . . . Kinetic 1565 | 88 1193 167 13 104 Thermal . | . . . . . Explosive . | . . . . . Electromagnetic . | . . . . . Impact . | . . . . . Slashing . | . . . . . Piercing . | . . . . . Highest Corruption 4 | . 4 4 4 4 Average Corruption 3 | . 3 4 4 4 Corruption Purged . | . . . . . Corruption Blocked . | . . . . . Effects 36 | . 7 13 15 1 Message Errors 8 | . 2 3 3 . Matter Fused 10 | . 1 4 5 . Heat Flow Errors 5 | . . 3 2 . Energy Discharges 1 | . . . 1 . Parts Rejected 1 | . 1 . . . Data Loss (minor) 6 | . 2 3 1 . Data Loss (major) 3 | . 1 . 2 . Misfires 1 | . . . 1 . Alerts 1 | . . . . 1 Overload Shots . | . . . . . Overflow Damage . | . . . . . Projectiles . | . . . . . Explosions . | . . . . . Melee . | . . . . . Knockbacks . | . . . . . Impact . | . . . . . Kinetic . | . . . . . Secondary . | . . . . . Self-Inflicted Damage . | . . . . . Shots . | . . . . . Rammed . | . . . . . Targets Rammed . | . . . . . Kicked . | . . . . . Crushed . | . . . . . Highest Temperature 264 | . 7 263 264 . Average Temperature 72 | . 2 102 132 . Received Heat Transfer 543 | . 483 60 . . Siege Activations . | . . . . . Martial Activations . | . . . . . Shielding Activations . | . . . . . Robots Disrupted . | . . . . . Combat Hostiles . | . . . . . Robots Corrupted . | . . . . . Combat Hostiles . | . . . . . Parts Fried . | . . . . . Impact Corruptions . | . . . . . Robots Melted . | . . . . . Combat Hostiles . | . . . . . Parts Melted . | . . . . . Heat Transferred . | . . . . . Parts Sabotaged . | . . . . . Parts Stolen . | . . . . . Parts Stripped . | . . . . . Power Chain Reactions . | . . . . . Alert | -11 -10 -10 -10 -9 ------- Run | Yrd Mat Min Exi Min Maximum Alert Level . | . . . . . Low Security (%) 100 | 100 100 100 . 100 Level 1 . | . . . . . Level 2 . | . . . . . Level 3 . | . . . . . Level 4 . | . . . . . Level 5 . | . . . . . High Security . | . . . . . Max Security . | . . . . . Peak Influence 91 | 5 91 70 . 60 Initial 30 | . . 30 . . Average 13 | . 19 7 . 34 Influence Increases 513 | 10 383 50 . 70 Destroy 0b10 Robot/C 340 | . 240 40 . 60 Destroy 0b10 Robot/NC 35 | 10 25 . . . Destroy Leader 86 | . 66 10 . 10 Successful Hack 36 | . 36 . . . Destroy Structure 1 | . 1 . . . Lose Combat Pursuer 15 | . 15 . . . Influence Decreases 453 | 10 304 129 . 10 Entered New Map 49 | . . 49 . . Time Decay 350 | 10 260 80 . . Lost Part 54 | . 44 . . 10 Squads Dispatched 3 | . 3 . . . Investigation . | . . . . . Extermination . | . . . . . Reinforcement 3 | . 3 . . . Assault . | . . . . . Garrison . | . . . . . Intercept . | . . . . . Searches Triggered . | . . . . . Construction Impeded . | . . . . . Haulers Reinforced . | . . . . . Active Scanning Responses . | . . . . . Cargo Convoy Interrupts . | . . . . . Stealth | -11 -10 -10 -10 -9 --------- Run | Yrd Mat Min Exi Min Distress Signals 2 | . 2 . . . Communications Jammed . | . . . . . Distress Signals . | . . . . . Times Spotted 32 | . 26 2 . 4 Peak Tracking Total 6 | . 6 2 . 3 Tactical Retreats 1 | . 1 . . . Traps | -11 -10 -10 -10 -9 ------- Run | Yrd Mat Min Exi Min Traps Triggered 2 | . 2 . . . Indirectly . | . . . . . Trap Hack Attempts . | . . . . . Triggered . | . . . . . Disarmed . | . . . . . Reprogrammed . | . . . . . Reused . | . . . . . Traps Extracted . | . . . . . Installed . | . . . . . Triggered . | . . . . . Machines | -11 -10 -10 -10 -9 ---------- Run | Yrd Mat Min Exi Min Machines Disabled . | . . . . . Max in Single Turn . | . . . . . Machines Repaired . | . . . . . Machines Dismantled . | . . . . . Machines Sabotaged . | . . . . . Overloaded Fab Kills . | . . . . . Hacking | -11 -10 -10 -10 -9 --------- Run | Yrd Mat Min Exi Min Machines Accessed 4 | . 4 . . . Terminals 3 | . 3 . . . Fabricators . | . . . . . Repair Stations . | . . . . . Recycling Units 1 | . 1 . . . Scanalyzers . | . . . . . Garrison Access . | . . . . . Total Hacks 16 | . 16 . . . Successful 11 | . 11 . . . Failed 5 | . 5 . . . Catastrophic 2 | . 2 . . . Database Lockouts . | . . . . . Manual 14 | . 14 . . . Terminals 15 | . 15 . . . Fabricators . | . . . . . Repair Stations . | . . . . . Recycling Units 1 | . 1 . . . Scanalyzers . | . . . . . Garrison Access . | . . . . . Terminal Hacks 6 | . 6 . . . Part Schematic 2 | . 2 . . . Robot Schematic 1 | . 1 . . . Terminal Index 1 | . 1 . . . Fabricator Index 1 | . 1 . . . Hauler Manifests 1 | . 1 . . . Fabricator Hacks . | . . . . . Repair Station Hacks . | . . . . . Recycling Unit Hacks 1 | . 1 . . . Retrieve Components 1 | . 1 . . . Scanalyzer . | . . . . . Garrison Access Hacks . | . . . . . Unauthorized Hacks 4 | . 4 . . . Terminals 4 | . 4 . . . Botnet 2 | . 2 . . . Operators 2 | . 2 . . . Fabricators . | . . . . . Repair Stations . | . . . . . Recycling Units . | . . . . . Scanalyzers . | . . . . . Garrison Access . | . . . . . Data Cores Recovered . | . . . . . Used . | . . . . . Hacking Detections 3 | . 3 . . . Full Trace Events . | . . . . . Feedback Events . | . . . . . Feedback Blocked . | . . . . . Robot Schematics Acquired 1 | . 1 . . . Robots Built . | . . . . . Authchips . | . . . . . Time . | . . . . . Total Robot Build Rating . | . . . . . Part Schematics Acquired 2 | . 2 . . . Parts Built . | . . . . . Authchips . | . . . . . Time . | . . . . . Total Part Build Rating . | . . . . . Part Studies Acquired . | . . . . . Parts Repaired . | . . . . . Time . | . . . . . Parts Recycled . | . . . . . Recycled Matter . | . . . . . Retrieved Matter . | . . . . . Retrieved Components 10 | . 10 . . . Parts Scanalyzed . | . . . . . Part Schematics Acquired . | . . . . . Parts Damaged . | . . . . . Bothacking | -11 -10 -10 -10 -9 ------------ Run | Yrd Mat Min Exi Min Used RIF Installer . | . . . . . Robots Hacked . | . . . . . Non-combat . | . . . . . Combat . | . . . . . Robot Hacks Applied . | . . . . . Relay Couplers Released . | . . . . . Fabnet Peak Effective % . | . . . . . Robots Rewired . | . . . . . Allies Hacked . | . . . . . Hacks Repelled . | . . . . . Allies | -11 -10 -10 -10 -9 -------- Run | Yrd Mat Min Exi Min Total Allies . | . . . . . Largest Group . | . . . . . Highest-Rated Group . | . . . . . Highest-Rated Ally . | . . . . . Total Orders . | . . . . . Ally Attacks . | . . . . . Total Damage . | . . . . . Kills . | . . . . . Allies Corrupted . | . . . . . Allies Melted . | . . . . . Intel | -11 -10 -10 -10 -9 ------- Run | Yrd Mat Min Exi Min Active Infowar (turns) 2430 | 20 932 858 607 13 Seismic 2430 | 20 932 858 607 13 Robot Analysis Total . | . . . . . Derelict Logs Recovered . | . . . . . Drone Launches . | . . . . . Drone Recoveries . | . . . . . Exploration | -11 -10 -10 -10 -9 ------------- Run | Yrd Mat Min Exi Min Turns Passed 2703 | 97 1125 858 607 16 Spaces Moved 1417 | 50 484 504 379 . Core 23 | 23 . . . . Treads 1394 | 27 484 504 379 . Legs . | . . . . . Wheels . | . . . . . Hover . | . . . . . Flight . | . . . . . Fastest Speed 50 | 50 160 160 160 . Average Speed 158 | 128 160 160 160 . Slowest Speed 200 | 200 160 160 160 . Overloaded Moves . | . . . . . Propulsion Burnouts . | . . . . . Robots Hopped . | . . . . . Potential Cave-ins . | . . . . . Cave-ins Triggered . | . . . . . Exploration Rate (%) 49 | 4 71 93 76 2 Regions Visited 4 Branch Regions 3 Pre-discovered Areas . | . . . . . Known Exits Taken . | . . . . . Unknown Exits Taken 4 | 1 1 1 1 . Scrap Searched 1 | . . 1 . . Spaces Dug . | . . . . . Terrain Destroyed . | . . . . . Melee . | . . . . . Projectile . | . . . . . AOE . | . . . . . Terrain Rammed . | . . . . . Walls Destroyed . | . . . . . Machines Disabled . | . . . . . Actions | -11 -10 -10 -10 -9 --------- Run | Yrd Mat Min Exi Min Total 1673 | 72 674 541 380 6 Wait 92 | . 66 26 . . Move 1413 | 49 483 503 378 . Hop . | . . . . . Pick Up 37 | 11 23 2 1 . Fast Attach 2 | 1 1 . . . Attach 13 | 6 7 . . . Detach . | . . . . . Swap 5 | . 5 . . . Drop 10 | . 7 2 1 . Fire 101 | 5 82 8 . 6 Melee . | . . . . . Ram . | . . . . . Kick . | . . . . . Crush . | . . . . . Escape Stasis . | . . . . . Rewire . | . . . . . Trap . | . . . . . Miscellaneous . | . . . . . Route ------- -11/Scrapyard -10/Materials (discovered 4 exits: [*Mat x2] / [*Min x2]) -10/Mines (discovered 4 exits: [*Mat x2] / *Exi / [*Sub]) -10/Exiles -9/Mines History --------- Turn | Location | Event 4 | -11/Scrapyard | Discovered new exit (range 15) 98 | -11/Scrapyard | Entered Materials 308 | -10/Materials | Build established: Mutant 350 | -10/Materials | Discovered new exit (range 16) 469 | -10/Materials | Lost 3 parts (1n2w) 714 | -10/Materials | Core integrity fell below 50% 770 | -10/Materials | Lost 3 parts (1p1n1w) 983 | -10/Materials | Discovered new exit (range 15) 1055 | -10/Materials | Discovered new exit (range 14) 1196 | -10/Materials | Discovered new exit (range 13) 1223 | -10/Materials | Entered Mines 1236 | -10/Mines | Core integrity fell below 20% 1299 | -10/Mines | YI-UF0 nonchalantly dropped a Grenade Launcher on the ground 1326 | -10/Mines | Discovered new exit (range 11) 1448 | -10/Mines | Discovered new exit (range 6) 1697 | -10/Mines | Discovered new exit (range 12) 1963 | -10/Mines | Deemed a non-threat by the Exiles lab entrance 1963 | -10/Mines | Discovered new exit (range 5) 2011 | -10/Mines | Found a hidden stash of uninstalled traps 2081 | -10/Mines | Entered Exiles 2120 | -10/Exiles | Met 8R-AWN 2147 | -10/Exiles | Met EX-HEX 2296 | -10/Exiles | Met EX-DEC 2327 | -10/Exiles | Visited The Gauntlet 2465 | -10/Exiles | Met EX-BIN 2667 | -10/Exiles | Discovered new exit (range 14) 2688 | -10/Exiles | Entered Mines 2704 | -9/Mines | Destroyed by S-10 Pest with Light Assault Rifle Last Messages --------------- 02583_ System corrupted: Component data lost. 02641_ System corrupted: Energy discharge (-41). 02641_ Extracted 45 energy. 02643_ Dropped Imp. Light Cannon. 02644_ Acquired Hcp. Battery. 02667_ EXIT=FOUND 02668_ TRZBH %CTP/SJFE>QPGG7HOWPT KH LOCATION=UNKNOWN GOAL=ESCAPE 02691_ S-10 Pest destroyed. 02691_ Switching to secondary target: S-10 Pest. 02693_ System corrupted: IFF burst signal emitted. 02694_ S-10 Pest destroyed. 02694_ Switching to secondary target: S-10 Pest. [Achievement: Deductive Reasoning] 02700_ Destroyed Flight Unit. 02701_ Seismic Detector destroyed. 02703_ S-10 Pest destroyed. 02703_ Switching to secondary target: S-10 Pest. Map ----- +----------------------------------------------------+ | | | | | | | | | | | | | | | | | | | | | | | | | | | | | | | ??????????????????????????????????????????????? | | ??????????????????????????????????????????????? | | ??????????????????????????????????????????????? | | ??????????????????????????????????????????????? | | ??????????????????????????????????????????????? | | ??????????????????????????????????????????????? | | ??????????????????????????????????????????????? | | ??????????????????????????????????????????????? | | ??????????????????????#######?????????????????? | | ??????????????????????# #?????????????????? | | ??????????????????????#% @ #?????????????????? | | ??????????????????????#*= #?????????????????? | | ??????????????????????#%"""s#?????????????????? | | ??????????????????????#=""" #?????????????????? | | ??????????????????????#[""" #?????????????????? | | ??????????????????????# #?????????????????? | | ??????????????????????# """ #?????????????????? | | ??????????????????????# """ #?????????????????? | | ??????????????????????# ??? ?????????????????? | | ??????????????????????????????????????????????? | | ??????????????????????????????????????????????? | | ??????????????????????????????????????????????? | | ??????????????????????????????????????????????? | | ??????????????????????????????????????????????? | | ??????????????????????????????????????????????? | | ??????????????????????????????????????????????? | | ??????????????????????????????????????????????? | | ??????????????????????????????????????????????? | | ??????????????????????????????????????????????? | | ??????????????????????????????????????????????? | | ??????????????????????????????????????????????? | | ??????????????????????????????????????????????? | | ??????????????????????????????????????????????? | | ??????????????????????????????????????????????? | | ??????????????????????????????????????????????? | +----------------------------------------------------+ Best States ------------- Heat Dissipation 25 Energy Generation 10 Energy Capacity 250 Matter Stores 300 Matter Capacity 300 Sight Range 16 Terrain Scan Density 10 Evasion (%) 50 Recoil Reduction 2 Item Schematics ----------------- Lgt. Treads | -10/Materials | Hacked Seismic Detector | -10/Materials | Hacked Robot Schematics ------------------ M-13 Machinist | -10/Materials | Hacked Fabricated ------------ Nothing Repaired ---------- Nothing Studied --------- None Alien Tech Used ----------------- None Achievements -------------- Deductive Reasoning Challenges ------------ None Game ------ Seed AbsorptionBattleProcessor Manual? 0 Play Time 00:19:03 Cumulative 51.3 hours Start 2025.11.17 @ 16:56:50 End 2025.11.17 @ 18:31:21 Sessions 3 Manual Loads 0 Difficulty Rogue Special Mode None Game No. 27 Rogue 27 Adventurer 0 Explorer 0 Win Type - Total 0 Types 0/0/0/0/0/0/0/0/0/0 Lore% 39 Gallery% 36 Achievement% 32 Wizard Run 0 Options --------- Layout 1 ASCII 0 Keyboard 0 Movement Numpad Keybinds 0 Fullscreen 2 Font 24/Smallcaps Map View 50x35 Zoom Use 0% Tactical HUD 1 Map Filters NONE Filters NONE Steam 1 RUN: aa99cf0f-8d6b-4fbd-aa28-405468c49799